fUST/lending_fUST_20250912
["ID","MTS","AMOUNT","RATE_DAILY","PERIOD"]
[384900718,1757622986551,337.85,0.00012329,2]
[384900719,1757622991731,300.0,0.00013585,2]
[384900720,1757622997054,281.54,0.00012329,2]
[384900721,1757623007944,234.62,0.00012329,2]
[384900722,1757623008517,300.0,0.00013585,2]
[384900723,1757623016820,300.0,0.00013585,2]
[384900724,1757623018988,195.52,0.00012329,2]
[384900725,1757623029515,162.93,0.00012329,2]
[384900726,1757623030224,223.57847,0.00012837,2]
[384900727,1757623033125,300.0,0.00013585,2]
[384900728,1757623040941,814.67,0.00012329,2]
[384900729,1757623042057,300.0,0.00013585,2]
[384900730,1757623045307,1000.0,0.00012837,2]
[384900731,1757623057341,300.0,0.00013585,2]
[384900732,1757623065888,300.0,0.00013585,2]
[384900733,1757623081924,300.0,0.00013585,2]
[384900734,1757623089794,300.0,0.00013585,2]
[384900735,1757623105669,300.0,0.00013585,2]
[384900736,1757623114047,300.0,0.00013585,2]
[384900737,1757623119680,10000.01,0.00012827,2]
[384900738,1757623124208,283.419958,0.00013699,2]
[384900739,1757623130999,300.0,0.00013585,2]
[384900740,1757623139395,300.0,0.00013585,2]
[384900741,1757623155935,8516.25,0.00013586,2]
[384900742,1757623163775,1765.09897817,0.00013586,2]
[384900743,1757623176712,1395.87990593,0.00028403,60]
[384900744,1757623180027,8036.25,0.00013586,2]
[384900745,1757623199887,1397.96228132,0.00024,30]
[384900746,1757623205125,300.0,0.00013585,2]
[384900749,1757623221321,10000.01,0.00012725,2]
[384900750,1757623221343,10000.01,0.00012725,2]
[384900751,1757623221366,6899.5885233,0.00012725,2]
[384900752,1757623229219,867.0,0.00013585,2]
[384900753,1757623252234,867.0,0.00013585,2]
[384900754,1757623276384,867.0,0.00013585,2]
[384900755,1757623284853,300.0,0.00013585,2]
[384900756,1757623300538,867.0,0.00013585,2]
[384900757,1757623305567,154.259126,0.00024,30]
[384900758,1757623305856,154.259126,0.00023178,30]
[384900759,1757623324625,867.0,0.00013585,2]
[384900761,1757623447618,551.25110723,0.00013625,2]
[384900762,1757623449589,1372.2971888,0.00012725,2]
[384900763,1757623460910,-300.0,0.00013722,2]
[384900764,1757623460940,-267.0,0.00013722,2]
[384900765,1757623460968,-336.0,0.00013722,2]
[384900766,1757623460997,-300.0,0.00013722,2]
[384900767,1757623461026,-480.0,0.00013723,2]
[384900768,1757623461054,-480.0,0.00013723,2]
[384900769,1757623461082,-480.0,0.00013723,2]
[384900770,1757623461110,-480.0,0.00013723,2]
[384900771,1757623461138,-480.0,0.00013723,2]
[384900772,1757623461166,-480.0,0.00013723,2]
[384900773,1757623461193,-480.0,0.00013723,2]
[384900774,1757623461220,-394.01,0.00013723,2]
[384900775,1757623461420,-85.99,0.00013723,2]
[384900776,1757623461448,-480.0,0.00013723,2]
[384900777,1757623461476,-480.0,0.00013723,2]
[384900778,1757623461507,-480.0,0.00013723,2]
[384900779,1757623461535,-480.0,0.00013723,2]
[384900780,1757623461562,-480.0,0.00013723,2]
[384900781,1757623461591,-480.0,0.00013723,2]
[384900782,1757623461619,-480.0,0.00013723,2]
[384900783,1757623461646,-480.0,0.00013723,2]
[384900784,1757623461786,-480.0,0.00013723,2]
[384900785,1757623461815,-480.0,0.00013723,2]
[384900786,1757623462026,-480.0,0.00013723,2]
[384900787,1757623462054,-480.0,0.00013723,2]
[384900788,1757623462083,-480.0,0.00013723,2]
[384900789,1757623462110,-480.0,0.00013723,2]
[384900790,1757623462139,-815.15,0.00013723,2]
[384900791,1757623462167,-480.0,0.00013723,2]
[384900792,1757623462195,-480.0,0.00013723,2]
[384900793,1757623462221,-480.0,0.00013723,2]
[384900794,1757623462248,-480.0,0.00013723,2]
[384900795,1757623462276,-209.71,0.00013723,2]
[384900796,1757623462343,-270.29,0.00013723,2]
[384900797,1757623462370,-480.0,0.00013723,2]
[384900798,1757623462398,-480.0,0.00013723,2]
[384900799,1757623462425,-480.0,0.00013723,2]
[384900800,1757623462453,-480.0,0.00013723,2]
[384900801,1757623462480,-480.0,0.00013723,2]
[384900802,1757623462512,-480.0,0.00013723,2]
[384900803,1757623462540,-234.41114981,0.00013723,2]
[384900804,1757623462570,-500.0,0.00013723,2]
[384900805,1757623462596,-500.0,0.00013723,2]
[384900806,1757623462626,-500.0,0.00013723,2]
[384900807,1757623462786,-500.0,0.00013723,2]
[384900808,1757623462814,-500.0,0.00013723,2]
[384900809,1757623462842,-500.0,0.00013723,2]
[384900810,1757623462871,-440.58264219,0.00013723,2]
[384900811,1757623462900,-500.0,0.00013723,2]
[384900812,1757623462928,-274.82907346,0.00013723,2]
[384900813,1757623462956,-500.0,0.00013723,2]
[384900814,1757623462985,-446.2,0.00013723,2]
[384900815,1757623463012,-480.0,0.00013723,2]
[384900816,1757623463040,-480.0,0.00013723,2]
[384900817,1757623463068,-214.90883028,0.00013723,2]
[384900818,1757623463358,-326.96890814,0.00013723,2]
[384900819,1757623463386,-480.0,0.00013723,2]
[384900820,1757623463413,-480.0,0.00013723,2]
[384900821,1757623463441,-480.0,0.00013723,2]
[384900822,1757623463470,-1766.92,0.00013723,2]
[384900823,1757623463501,-480.0,0.00013723,2]
[384900824,1757623463530,-480.0,0.00013723,2]
[384900825,1757623463561,-480.0,0.00013723,2]
[384900826,1757623463632,-480.0,0.00013723,2]
[384900827,1757623463662,-480.0,0.00013723,2]
[384900828,1757623463690,-480.0,0.00013723,2]
[384900829,1757623463718,-480.0,0.00013723,2]
[384900830,1757623463746,-1429.09,0.00013723,2]
[384900831,1757623463773,-480.0,0.00013723,2]
[384900832,1757623463802,-480.0,0.00013723,2]
[384900833,1757623463902,-4394.88,0.00013723,2]
[384900834,1757623463930,-480.0,0.00013723,2]
[384900835,1757623464204,-480.0,0.00013723,2]
[384900836,1757623464237,-480.0,0.00013723,2]
[384900837,1757623464271,-556.41,0.00013723,2]
[384900838,1757623464309,-1340.74,0.00013723,2]
[384900839,1757623464347,-480.0,0.00013723,2]
[384900840,1757623464378,-480.0,0.00013723,2]
[384900841,1757623464413,-835.27,0.00013723,2]
[384900842,1757623464450,-114.38,0.00013723,2]
[384900843,1757623464720,-466.41,0.00013723,2]
[384900844,1757623464757,-480.0,0.00013723,2]
[384900845,1757623464791,-480.0,0.00013723,2]
[384900846,1757623464826,-1196.32,0.00013723,2]
[384900847,1757623464860,-480.0,0.00013723,2]
[384900848,1757623464893,-480.0,0.00013723,2]
[384900849,1757623464928,-480.0,0.00013723,2]
[384900850,1757623464961,-480.0,0.00013723,2]
[384900851,1757623465141,-434.55,0.00013723,2]
[384900852,1757623467584,10000.0,0.00012861,2]
[384900853,1757623467616,-45.45,0.00013723,2]
[384900854,1757623467645,-480.0,0.00013723,2]
[384900855,1757623467675,-480.0,0.00013723,2]
[384900856,1757623467703,-480.0,0.00013723,2]
[384900857,1757623467731,-1301.09994025,0.00013723,2]
[384900858,1757623467761,-480.0,0.00013724,2]
[384900859,1757623467790,-1360.22,0.00013724,2]
[384900860,1757623467820,-266.4701195,0.00013724,2]
[384900861,1757623467966,-213.5298805,0.00013724,2]
[384900862,1757623467995,-480.0,0.00013724,2]
[384900863,1757623468024,-480.0,0.00013724,2]
[384900864,1757623468054,-480.0,0.00013724,2]
[384900865,1757623468085,-480.0,0.00013724,2]
[384900866,1757623468114,-480.0,0.00013724,2]
[384900867,1757623468143,-1052.33,0.00013724,2]
[384900868,1757623468171,-480.0,0.00013724,2]
[384900869,1757623468200,-480.0,0.00013724,2]
[384900870,1757623468251,-794.69,0.00013724,2]
[384900871,1757623468281,-480.0,0.00013724,2]
[384900872,1757623468312,-480.0,0.00013724,2]
[384900873,1757623468341,-230.6,0.00013724,2]
[384900874,1757623468472,-480.0,0.00013723,2]
[384900875,1757623468527,-480.0,0.00013723,2]
[384900876,1757623471272,-480.0,0.00013723,2]
[384900877,1757623479245,-8133.09945587,0.00013724,2]
[384900878,1757623479403,-4656.84054413,0.00013724,2]
[384900879,1757623479432,-206.32891174,0.00013724,2]
[384900880,1757623479467,-273.67108826,0.00013724,2]
[384900881,1757623479542,-480.0,0.00013724,2]
[384900882,1757623479571,-480.0,0.00013724,2]
[384900883,1757623479602,-480.0,0.00013724,2]
[384900884,1757623479631,-480.0,0.00013724,2]
[384900885,1757623479661,-614.2,0.00013724,2]
[384900886,1757623479693,-2438.41,0.00013724,2]
[384900887,1757623479792,-54.79,0.00013724,2]
[384900888,1757623480811,-480.0,0.00013724,2]
[384900889,1757623480841,-480.0,0.00013724,2]
[384900890,1757623480868,-480.0,0.00013724,2]
[384900891,1757623480896,-480.0,0.00013724,2]
[384900892,1757623480923,-480.0,0.00013724,2]
[384900893,1757623480952,-1137.05,0.00013724,2]
[384900894,1757623480984,-1044.51,0.00013724,2]
[384900895,1757623481013,-356.89,0.00013724,2]
[384900896,1757623481178,-123.11,0.00013724,2]
[384900897,1757623481206,-480.0,0.00013724,2]
[384900898,1757623481235,-480.0,0.00013724,2]
[384900899,1757623481264,-480.0,0.00013724,2]
[384900900,1757623481292,-480.0,0.00013724,2]
[384900901,1757623481322,-500.0,0.00013724,2]
[384900902,1757623481351,-480.0,0.00013724,2]
[384900903,1757623481382,-480.0,0.00013724,2]
[384900904,1757623481411,-480.0,0.00013724,2]
[384900905,1757623481440,-480.0,0.00013724,2]
[384900906,1757623481470,-480.0,0.00013724,2]
[384900907,1757623481594,-480.0,0.00013724,2]
[384900908,1757623481623,-480.0,0.00013724,2]
[384900909,1757623481653,-480.0,0.00013724,2]
[384900910,1757623481682,-480.0,0.00013724,2]
[384900911,1757623481713,-828.95,0.00013724,2]
[384900912,1757623481744,-500.0,0.00013725,2]
[384900913,1757623481774,-480.0,0.00013725,2]
[384900914,1757623481802,-480.0,0.00013725,2]
[384900915,1757623481830,-480.0,0.00013725,2]
[384900916,1757623481858,-142.11,0.00013725,2]
[384900917,1757623481963,-337.89,0.00013725,2]
[384900918,1757623481993,-480.0,0.00013725,2]
[384900919,1757623482022,-480.0,0.00013725,2]
[384900920,1757623482050,-480.0,0.00013725,2]
[384900921,1757623482079,-480.0,0.00013725,2]
[384900922,1757623482106,-480.0,0.00013725,2]
[384900923,1757623482134,-480.0,0.00013725,2]
[384900924,1757623482162,-480.0,0.00013725,2]
[384900925,1757623482191,-480.0,0.00013725,2]
[384900926,1757623482218,-480.0,0.00013725,2]
[384900927,1757623482246,-204.23,0.00013725,2]
[384900928,1757623482414,-275.77,0.00013725,2]
[384900929,1757623482441,-480.0,0.00013725,2]
[384900930,1757623482469,-480.0,0.00013725,2]
[384900931,1757623482500,-480.0,0.00013725,2]
[384900932,1757623482529,-480.0,0.00013725,2]
[384900933,1757623482665,-480.0,0.00013725,2]
[384900934,1757623482695,-480.0,0.00013725,2]
[384900935,1757623482726,-480.0,0.00013725,2]
[384900936,1757623482754,-480.0,0.00013725,2]
[384900937,1757623482784,-480.0,0.00013725,2]
[384900938,1757623482813,-328.47,0.00013725,2]
[384900939,1757623482908,-480.0,0.00013723,2]
[384900940,1757623482938,-151.53,0.00013725,2]
[384900941,1757623482969,-507.66214982,0.00013725,2]
[384900942,1757623482999,-480.0,0.00013725,2]
[384900943,1757623483030,-480.0,0.00013725,2]
[384900944,1757623483060,-487.22,0.00013725,2]
[384900945,1757623483089,-480.0,0.00013725,2]
[384900946,1757623483121,-480.0,0.00013725,2]
[384900947,1757623483150,-480.0,0.00013725,2]
[384900948,1757623483179,-480.0,0.00013725,2]
[384900949,1757623483212,-480.0,0.00013725,2]
[384900950,1757623483405,-231.33614442,0.00013725,2]
[384900951,1757623483432,-480.0,0.00013725,2]
[384900952,1757623483460,-480.0,0.00013725,2]
[384900953,1757623483487,-480.0,0.00013725,2]
[384900954,1757623483519,-480.0,0.00013725,2]
[384900955,1757623483547,-480.0,0.00013725,2]
[384900956,1757623483574,-480.0,0.00013725,2]
[384900957,1757623483603,-480.0,0.00013725,2]
[384900958,1757623483630,-495.88460402,0.00013725,2]
[384900959,1757623483660,-611.84850312,0.00013725,2]
[384900960,1757623483739,-601.87149688,0.00013725,2]
[384900961,1757623483765,-176.22159004,0.00013725,2]
[384900962,1757623483793,-480.0,0.00013725,2]
[384900963,1757623483821,-480.0,0.00013725,2]
[384900964,1757623483848,-480.0,0.00013725,2]
[384900965,1757623483875,-536.88792203,0.00013725,2]
[384900966,1757623483902,-480.0,0.00013725,2]
[384900967,1757623483929,-480.0,0.00013725,2]
[384900968,1757623483957,-480.0,0.00013725,2]
[384900969,1757623483984,-480.0,0.00013725,2]
[384900970,1757623484011,-170.0479821,0.00013725,2]
[384900971,1757623484223,-309.9520179,0.00013725,2]
[384900972,1757623484250,-321.86864523,0.00013725,2]
[384900973,1757623484277,-480.0,0.00013725,2]
[384900974,1757623484304,-480.0,0.00013725,2]
[384900975,1757623484331,-480.0,0.00013725,2]
[384900976,1757623484357,-480.0,0.00013725,2]
[384900977,1757623484384,-480.0,0.00013725,2]
[384900978,1757623484410,-480.0,0.00013725,2]
[384900979,1757623484436,-480.0,0.00013725,2]
[384900980,1757623484462,-480.0,0.00013725,2]
[384900981,1757623484489,-480.0,0.00013725,2]
[384900982,1757623484808,-480.0,0.00013725,2]
[384900983,1757623484836,-480.0,0.00013725,2]
[384900984,1757623484865,-480.0,0.00013725,2]
[384900985,1757623484895,-480.0,0.00013725,2]
[384900986,1757623484924,-480.0,0.00013725,2]
[384900987,1757623484953,-480.0,0.00013725,2]
[384900988,1757623484982,-480.0,0.00013725,2]
[384900989,1757623485010,-480.0,0.00013725,2]
[384900990,1757623485040,-480.0,0.00013725,2]
[384900991,1757623485070,-480.0,0.00013725,2]
[384900992,1757623486382,-274.35098256,0.00013725,2]
[384900993,1757623486397,-205.64901744,0.00013725,2]
[384900994,1757623486406,-274.35098256,0.00013725,2]
[384900995,1757623486420,-205.64901744,0.00013725,2]
[384900996,1757623486430,-274.35098256,0.00013725,2]
[384900997,1757623486444,-205.64901744,0.00013725,2]
[384900998,1757623486454,-274.35098256,0.00013725,2]
[384900999,1757623486473,-205.64901744,0.00013725,2]
[384901000,1757623486482,-274.35098256,0.00013725,2]
[384901001,1757623486505,-205.64901744,0.00013725,2]
[384901002,1757623486515,-194.36098256,0.00013725,2]
[384901003,1757623486579,-285.63901744,0.00013725,2]
[384901004,1757623486620,-480.0,0.00013725,2]
[384901005,1757623486649,-480.0,0.00013725,2]
[384901006,1757623486679,-310.5199138,0.00013725,2]
[384901007,1757623486708,-480.0,0.00013725,2]
[384901008,1757623486735,-480.0,0.00013725,2]
[384901009,1757623486764,-480.0,0.00013725,2]
[384901010,1757623486793,-480.0,0.00013725,2]
[384901011,1757623486918,-500.0,0.00013725,2]
[384901012,1757623486950,-242.33848777,0.00013725,2]
[384901013,1757623486981,-480.0,0.00013725,2]
[384901014,1757623487014,-123.01516198,0.00013725,2]
[384901015,1757623487155,-356.98483802,0.00013725,2]
[384901016,1757623487184,-480.0,0.00013725,2]
[384901017,1757623487212,-480.0,0.00013725,2]
[384901018,1757623487239,-480.0,0.00013725,2]
[384901019,1757623487266,-480.0,0.00013725,2]
[384901020,1757623487293,-480.0,0.00013725,2]
[384901021,1757623487321,-480.0,0.00013725,2]
[384901022,1757623487350,-480.0,0.00013726,2]
[384901023,1757623487379,-500.0,0.00013726,2]
[384901024,1757623487408,-500.0,0.00013726,2]
[384901025,1757623487435,-66.04032396,0.00013726,2]
[384901026,1757623487475,-433.95967604,0.00013726,2]
[384901027,1757623487937,-376.98483802,0.00013723,2]
[384901028,1757623487951,-103.01516198,0.00013723,2]
[384901029,1757623487960,-330.94451406,0.00013723,2]
[384901030,1757623487974,-149.05548594,0.00013723,2]
[384901031,1757623487983,-8983.03516198,0.00013727,2]
[384901032,1757623487997,-9076.39604652,0.00013727,2]
[384901033,1757623488006,-480.0,0.00013727,2]
[384901034,1757623488015,-443.61395348,0.00013727,2]
[384901035,1757623488030,-36.38604652,0.00013727,2]
[384901036,1757623488039,-480.0,0.00013727,2]
[384901037,1757623488048,-839.03,0.00013727,2]
[384901038,1757623488057,-480.0,0.00013727,2]
[384901039,1757623488066,-480.0,0.00013727,2]
[384901040,1757623488076,-480.0,0.00013727,2]
[384901041,1757623488085,-480.0,0.00013727,2]
[384901042,1757623488095,-480.0,0.00013727,2]
[384901043,1757623488104,-480.0,0.00013727,2]
[384901044,1757623488113,-480.0,0.00013727,2]
[384901045,1757623488122,-480.0,0.00013727,2]
[384901046,1757623488131,-480.0,0.00013727,2]
[384901047,1757623488140,-480.0,0.00013727,2]
[384901048,1757623488149,-480.0,0.00013727,2]
[384901049,1757623488158,-480.0,0.00013727,2]
[384901050,1757623488168,-480.0,0.00013727,2]
[384901051,1757623488177,-480.0,0.00013727,2]
[384901052,1757623488186,-484.4259608,0.00013727,2]
[384901053,1757623488195,-480.0,0.00013727,2]
[384901054,1757623488204,-480.0,0.00013727,2]
[384901055,1757623488213,-480.0,0.00013727,2]
[384901056,1757623488222,-0.16799268,0.00013727,2]
[384901057,1757623488238,-479.83200732,0.00013727,2]
[384901058,1757623488246,-480.0,0.00013727,2]
[384901059,1757623488255,-480.0,0.00013727,2]
[384901060,1757623488265,-480.0,0.00013727,2]
[384901061,1757623488274,-480.0,0.00013727,2]
[384901062,1757623488283,-480.0,0.00013727,2]
[384901063,1757623488293,-484.00662915,0.00013727,2]
[384901064,1757623488302,-480.0,0.00013727,2]
[384901065,1757623488311,-524.13469973,0.00013727,2]
[384901066,1757623488321,-480.0,0.00013727,2]
[384901067,1757623488330,-480.0,0.00013727,2]
[384901068,1757623488339,-480.0,0.00013727,2]
[384901069,1757623488349,-569.77342353,0.00013727,2]
[384901070,1757623488358,-480.0,0.00013727,2]
[384901071,1757623488367,-480.0,0.00013727,2]
[384901072,1757623488378,-480.0,0.00013727,2]
[384901073,1757623488387,-480.0,0.00013727,2]
[384901074,1757623488397,-480.0,0.00013727,2]
[384901075,1757623488406,-480.0,0.00013727,2]
[384901076,1757623488415,-480.0,0.00013727,2]
[384901077,1757623488424,-262.26324027,0.00013727,2]
[384901078,1757623488443,-217.73675973,0.00013727,2]
[384901079,1757623488452,-480.0,0.00013727,2]
[384901080,1757623488461,-480.0,0.00013727,2]
[384901081,1757623488470,-480.0,0.00013727,2]
[384901082,1757623488480,-480.0,0.00013727,2]
[384901083,1757623488489,-480.0,0.00013727,2]
[384901084,1757623488501,-553.24,0.00013727,2]
[384901085,1757623488510,-480.0,0.00013727,2]
[384901086,1757623489455,-480.0,0.00013723,2]
[384901087,1757623489484,-480.0,0.00013723,2]
[384901088,1757623489517,-480.0,0.00013724,2]
[384901089,1757623489659,481.85415728,0.00013725,2]
[384901090,1757623489692,480.0,0.00013724,2]
[384901091,1757623493423,480.0,0.00013725,2]
[384901092,1757623495442,480.0,0.00013727,2]
[384901093,1757623495582,480.0,0.00013723,2]
[384901094,1757623495613,2386.75,0.00013731,2]
[384901095,1757623497040,480.0,0.00013725,2]
[384901096,1757623497727,480.0,0.00013723,2]
[384901097,1757623498861,1371.40584272,0.00013723,2]
[384901098,1757623498885,37.99415728,0.00013723,2]
[384901099,1757623499010,480.0,0.00013725,2]
[384901100,1757623499051,500.0,0.00013723,2]
[384901101,1757623501119,480.0,0.00013723,2]
[384901102,1757623501156,480.0,0.00013725,2]
[384901103,1757623503636,1369.61,0.00012329,2]
[384901104,1757623503730,480.0,0.00013723,2]
[384901105,1757623506405,271.8,0.00013724,2]
[384901106,1757623506780,495.99,0.00013725,2]
[384901107,1757623507198,1093.26,0.00013724,2]
[384901108,1757623508237,1255.69,0.00013724,2]
[384901109,1757623509316,480.0,0.00013725,2]
[384901110,1757623510094,271.8,0.00013587,2]
[384901111,1757623510587,231.34557866,0.00013725,2]
[384901112,1757623512476,480.0,0.00013723,2]
[384901113,1757623514279,3442.67,0.00012329,2]
[384901114,1757623516965,480.0,0.00013725,2]
[384901115,1757623518686,551.2511072,0.00013692,2]
[384901116,1757623518982,480.0,0.00013724,2]
[384901117,1757623519044,480.0,0.00013725,2]
[384901118,1757623519578,480.0,0.00013723,2]
[384901119,1757623520642,480.0,0.00013723,2]
[384901120,1757623521001,480.0,0.00013723,2]
[384901121,1757623522106,480.0,0.00013725,2]
[384901122,1757623524264,480.0,0.00013724,2]
[384901123,1757623524766,2868.89,0.00012329,2]
[384901124,1757623526205,480.0,0.00013723,2]
[384901125,1757623526574,551.2511072,0.00013692,2]
[384901126,1757623527661,480.0,0.00013723,2]
[384901127,1757623528097,480.0,0.00013725,2]
[384901128,1757623528353,855.02,0.00013723,2]
[384901129,1757623528855,480.0,0.00013725,2]
[384901130,1757623532170,480.0,0.00013723,2]
[384901131,1757623534467,480.0,0.00013723,2]
[384901132,1757623535218,551.2511072,0.00013692,2]
[384901133,1757623535519,2390.74,0.00012329,2]
[384901134,1757623537574,480.0,0.00013724,2]
[384901135,1757623539027,480.0,0.00013723,2]
[384901136,1757623539862,480.0,0.00013725,2]
[384901137,1757623539985,427.31846168,0.00013723,2]
[384901138,1757623540502,480.0,0.00013723,2]
[384901139,1757623541342,480.0,0.00013723,2]
[384901140,1757623542069,480.7610707,0.00013725,2]
[384901141,1757623543014,551.2511072,0.00013692,2]
[384901142,1757623543873,480.0,0.00013723,2]
[384901143,1757623544795,480.0,0.00013727,2]
[384901144,1757623544965,480.0,0.00013723,2]
[384901145,1757623545036,480.0,0.00013725,2]
[384901146,1757623545136,480.0,0.00013723,2]
[384901147,1757623546106,480.0,0.00013723,2]
[384901148,1757623546222,1992.28,0.00012329,2]
[384901149,1757623547247,480.0,0.00013727,2]
[384901150,1757623548489,480.0,0.00013725,2]
[384901151,1757623548582,480.0,0.00013723,2]
[384901152,1757623549711,480.0,0.00013723,2]
[384901153,1757623550716,480.0,0.00013724,2]
[384901154,1757623551809,551.2511072,0.00013692,2]
[384901155,1757623552700,480.0,0.00013724,2]
[384901156,1757623553790,480.0,0.00013723,2]
[384901157,1757623553911,480.0,0.00013723,2]
[384901158,1757623554907,480.0,0.00013725,2]
[384901159,1757623557038,1660.24,0.00012329,2]
[384901160,1757623557566,993.30252675,0.0001373,2]
[384901161,1757623557649,2.93636605,0.00013725,2]
[384901162,1757623557672,477.06363395,0.00013725,2]
[384901163,1757623557740,480.0,0.00013723,2]
[384901164,1757623559669,480.0,0.00013727,2]
[384901165,1757623560308,480.0,0.00013723,2]
[384901166,1757623560373,480.0,0.00013723,2]
[384901167,1757623560405,480.0,0.00013724,2]
[384901168,1757623560732,480.0,0.00013725,2]
[384901169,1757623560816,551.2511072,0.00013692,2]
[384901170,1757623561219,480.0,0.00013725,2]
[384901171,1757623562052,480.0,0.00013725,2]
[384901172,1757623563350,513.98,0.00013727,2]
[384901173,1757623563561,480.0,0.00013725,2]
[384901174,1757623564167,480.0,0.00013723,2]
[384901175,1757623564322,204.87340973,0.00013725,2]
[384901176,1757623565369,512.01348464,0.00013727,2]
[384901177,1757623565779,485.96400693,0.00013723,2]
[384901178,1757623566304,480.0,0.00013723,2]
[384901179,1757623566357,480.0,0.00013723,2]
[384901180,1757623566544,480.0,0.00013723,2]
[384901181,1757623567503,826.37,0.00013723,2]
[384901182,1757623567643,1383.53,0.00012329,2]
[384901183,1757623569438,551.2511072,0.00013692,2]
[384901184,1757623570752,480.0,0.00013725,2]
[384901185,1757623571130,8968.7588928,0.00013723,2]
[384901186,1757623571157,4020.3311072,0.00013723,2]
[384901187,1757623571774,486.72549177,0.00013723,2]
[384901188,1757623575537,480.0,0.00013725,2]
[384901189,1757623576729,480.0,0.00013727,2]
[384901190,1757623576760,480.0,0.00013725,2]
[384901191,1757623578071,480.0,0.00013725,2]
[384901192,1757623578131,551.2511072,0.00013692,2]
[384901193,1757623578419,1383.53,0.00012329,2]
[384901194,1757623579379,480.0,0.00013723,2]
[384901195,1757623579567,480.0,0.00013723,2]
[384901196,1757623580396,480.0,0.00013725,2]
[384901197,1757623581265,480.0,0.00013723,2]
[384901198,1757623581296,480.0,0.00013727,2]
[384901199,1757623583314,480.0,0.00013724,2]
[384901200,1757623583648,480.0,0.00013723,2]
[384901201,1757623583772,2569.01,0.00013724,2]
[384901202,1757623583981,480.0,0.00013727,2]
[384901203,1757623584148,480.0,0.00013723,2]
[384901204,1757623584610,480.0,0.00013725,2]
[384901205,1757623586294,480.0,0.00013723,2]
[384901206,1757623586671,551.2511072,0.00013692,2]
[384901207,1757623586907,480.0,0.00013723,2]
[384901208,1757623587444,480.0,0.00013723,2]
[384901209,1757623587582,480.0,0.00013723,2]
[384901210,1757623587825,480.0,0.00013725,2]
[384901211,1757623588454,480.0,0.00013725,2]
[384901212,1757623589082,480.0,0.00013723,2]
[384901213,1757623589430,480.0,0.00013723,2]
[384901214,1757623589462,480.0,0.00013723,2]
[384901215,1757623589513,922.35,0.00012329,2]
[384901216,1757623589558,311.54081522,0.00013723,2]
[384901217,1757623589699,480.0,0.00013723,2]
[384901218,1757623590159,480.0,0.00013725,2]
[384901219,1757623590320,480.0,0.00013727,2]
[384901220,1757623590684,480.0,0.00013725,2]